bitfinex/quotes_SOLUSD_20241020
["timestamp","ask_amount","ask_price","bid_price","bid_amount"]
[1729456600777,6.48242528,161.11,161.04,23.776884]
[1729456601068,6.48242528,161.11,161.05,2.97799533]
[1729456602247,6.48242528,161.11,161.04,23.776884]
[1729456602453,6.48242528,161.11,161.05,2.97991024]
[1729456602751,6.48242528,161.11,161.04,23.776884]
[1729456602959,6.48242528,161.11,161.05,2.97994506]
[1729456603177,6.48242528,161.11,161.04,23.776884]
[1729456603352,6.48242528,161.11,161.05,2.98104974]
[1729456603553,6.48242528,161.11,161.06,2.980964]
[1729456603765,6.48242528,161.11,161.04,23.776884]
[1729456603978,6.48242528,161.11,161.05,2.98097603]
[1729456604274,6.48242528,161.11,161.06,2.98097603]
[1729456604577,6.48242528,161.11,161.04,23.776884]
[1729456604778,6.48242528,161.11,161.05,2.98237728]
[1729456605069,6.48242528,161.11,161.06,2.98237728]
[1729456605370,6.48242528,161.11,161.04,23.776884]
[1729456605563,6.48242528,161.11,161.05,2.98275041]
[1729456605765,6.48242528,161.11,161.06,2.98275041]
[1729456605948,6.48242528,161.11,161.04,23.776884]
[1729456606155,6.48242528,161.11,161.05,2.98260838]
[1729456606361,6.48242528,161.11,161.06,2.98260838]
[1729456606660,6.48242528,161.11,161.07,2.98260838]
[1729456606975,6.48242528,161.11,161.08,2.98239242]
[1729456607171,6.48242528,161.11,161.04,23.776884]
[1729456607375,6.48242528,161.11,161.05,2.98266939]
[1729456607674,6.48242528,161.11,161.06,2.98266939]
[1729456607863,6.48242528,161.11,161.07,2.98266939]
[1729456608065,6.48242528,161.11,161.08,2.98266939]
[1729456608264,6.48242528,161.11,161.01,20.0]
[1729456608265,6.48242528,161.11,161.02,23.776884]
[1729456608469,6.48242528,161.11,161.03,2.98311017]
[1729456608653,6.48242528,161.11,161.04,2.98311017]
[1729456608977,6.48242528,161.11,161.05,2.98311017]
[1729456609154,6.48242528,161.11,161.06,2.98311017]
[1729456609351,6.48242528,161.11,161.07,2.98311017]
[1729456609589,6.48242528,161.11,160.96,14.6451]
[1729456609590,12.68962528,161.11,160.97,20.0]
[1729456609760,12.68962528,161.11,160.98,2.98405893]
[1729456610081,12.78962528,161.11,160.99,2.98405893]
[1729456610259,12.78962528,161.11,161.0,2.98405893]
[1729456610456,12.68962528,161.11,161.01,2.98405893]
[1729456610657,12.68962528,161.11,161.02,2.98405893]
[1729456610862,6.2074,161.1,161.03,2.98405893]
[1729456611074,6.2074,161.1,160.97,20.0]
[1729456611257,6.2074,161.1,161.04,2.98489742]
[1729456611457,6.2074,161.1,161.05,2.98489742]
[1729456611663,6.2074,161.1,161.06,2.98489742]
[1729456611874,6.2074,161.1,161.07,2.98548305]
[1729456612200,6.2074,161.1,160.97,20.0]
[1729456612486,6.2074,161.1,161.0,23.776884]
[1729456612667,6.2074,161.1,161.01,2.98608705]
[1729456612861,6.2074,161.1,161.02,2.98608705]
[1729456613062,6.2074,161.1,161.03,2.98608705]
[1729456613257,6.2074,161.1,161.0,23.776884]
[1729456613258,6.2074,161.1,161.04,2.98608705]
[1729456613460,6.2074,161.1,161.05,2.98608705]
[1729456613681,6.2074,161.1,161.06,2.98608705]
[1729456613884,6.2074,161.1,161.0,23.776884]
[1729456614091,6.2074,161.1,161.01,2.98699393]
[1729456614259,6.2074,161.1,161.02,2.98699393]
[1729456614460,6.2074,161.1,161.03,2.98699393]
[1729456614660,12.6895432,161.1,161.04,2.98699393]
[1729456614861,12.6895432,161.1,161.05,2.98794723]
[1729456615077,12.6895432,161.1,161.06,2.98794723]
[1729456615287,12.6895432,161.1,161.0,23.776884]
[1729456615488,12.62613898,161.1,161.01,2.98818695]
[1729456615680,12.62613898,161.1,161.02,2.98818695]
[1729456615877,12.62613898,161.1,161.03,2.98818695]
[1729456616200,12.62613898,161.1,161.04,2.98818695]
[1729456616361,12.62613898,161.1,161.05,2.98818695]
[1729456616677,12.62613898,161.1,161.06,2.98818695]
[1729456616879,12.62613898,161.1,161.0,23.776884]
[1729456617074,12.62613898,161.1,161.01,2.98852877]
[1729456617278,12.72613898,161.1,161.02,2.98852877]
[1729456617468,12.72613898,161.1,161.03,2.98852877]
[1729456617769,12.72613898,161.1,161.04,2.98852877]
[1729456617969,12.72613898,161.1,161.05,2.98852877]
[1729456618167,12.72613898,161.1,161.06,2.98852877]
[1729456618368,12.72613898,161.1,161.07,2.98852877]
[1729456618575,12.72613898,161.1,161.0,23.776884]
[1729456618773,12.66273476,161.1,161.01,2.98919926]
[1729456618990,12.66273476,161.1,161.02,2.98919926]
[1729456619188,12.7034,161.09,161.03,2.98919926]
[1729456619394,12.7034,161.09,161.04,2.98919926]
[1729456619596,12.7034,161.09,161.05,2.98919926]
[1729456619796,12.7034,161.09,161.06,2.98919926]
[1729456620101,12.7034,161.09,161.07,2.98919926]
[1729456620275,12.7034,161.09,160.98,23.776884]
[1729456620471,6.2087,161.07,160.99,2.98842305]
[1729456620675,0.1,161.07,161.0,2.98842305]
[1729456621000,6.3088,161.07,161.01,2.98842305]
[1729456621180,6.3088,161.07,160.93,20.0]
[1729456621493,6.3088,161.07,160.94,2.98964045]
[1729456621693,6.3088,161.07,160.95,2.98964045]
[1729456621878,6.3088,161.07,160.96,2.98964045]
[1729456622079,6.3088,161.07,160.97,2.98964045]
[1729456622405,6.24539578,161.07,160.98,2.98964045]
[1729456622575,16.1421,161.08,160.99,2.98964045]
[1729456622775,16.1421,161.08,160.96,0.06340422]
[1729456622776,22.3502,161.08,161.0,2.98964045]
[1729456622996,22.3502,161.08,161.01,2.98794789]
[1729456623171,16.0421,161.08,161.02,2.98794789]
[1729456623370,16.0421,161.08,161.03,2.98794789]
[1729456623679,16.0421,161.08,161.04,2.98794789]
[1729456623862,16.0421,161.08,161.05,2.98794789]
[1729456624062,16.0421,161.08,161.06,2.98794789]
[1729456624383,16.0421,161.08,161.0,0.06340422]
[1729456624568,16.0421,161.08,161.01,2.98714155]
[1729456624889,22.52458878,161.08,161.02,2.98714155]
[1729456625088,22.52458878,161.08,161.03,2.98714155]
[1729456625394,22.52458878,161.08,161.04,2.98714155]
[1729456625571,28.73268878,161.08,161.05,2.98714155]
[1729456625890,22.46118456,161.08,161.06,2.98714155]
[1729456626093,6.2084,161.07,160.96,0.06340422]
[1729456626286,6.2084,161.07,160.97,2.98739809]
[1729456626484,6.2084,161.07,160.98,2.98739809]
[1729456626675,22.46118456,161.08,160.99,3.05080231]
[1729456626989,22.46118456,161.08,161.0,2.98739809]
[1729456627191,22.46118456,161.08,160.99,0.06340422]
[1729456627192,22.46118456,161.08,161.01,2.98739809]
[1729456627369,22.46118456,161.08,161.02,2.98739809]
[1729456627565,22.46118456,161.08,161.03,2.98739809]
[1729456627775,22.46118456,161.08,161.04,2.98739809]
[1729456627976,22.46118456,161.08,161.05,2.98739809]
[1729456628202,22.46118456,161.08,160.99,0.06340422]
[1729456628377,22.46118456,161.08,161.0,2.98722303]
[1729456628571,22.46118456,161.08,161.01,2.98722303]
[1729456628779,22.46118456,161.08,161.02,2.98722303]
[1729456628981,22.46118456,161.08,161.03,2.98722303]
[1729456629183,22.39778034,161.08,161.04,2.98722303]
[1729456629383,22.39778034,161.08,161.0,0.06340422]
[1729456629785,22.39778034,161.08,161.01,0.06340422]
[1729456630497,6.7361,161.13,161.03,0.06340422]
[1729456630711,6.48133404,161.11,161.03,0.06340422]
[1729456631394,6.48133404,161.11,161.03,20.06340422]
[1729456633728,6.48133404,161.11,161.02,23.776884]
[1729456634012,12.78853404,161.11,160.98,14.83530422]
[1729456634222,6.2073,161.1,160.99,0.06340422]
[1729456634511,6.3073,161.1,160.99,0.06340422]
[1729456634710,0.1,161.1,160.98,14.83530422]
[1729456634918,6.2078,161.09,160.98,14.83530422]
[1729456635303,6.6361,161.08,160.98,14.7719]
[1729456635614,6.6361,161.08,160.98,14.83530422]
[1729456635810,6.6361,161.08,160.99,20.0]
[1729456636316,6.6361,161.08,160.99,20.06340422]
[1729456636517,6.6361,161.08,160.99,20.0]
[1729456636818,6.6361,161.08,160.96,6.174]
[1729456636819,15.6787,161.07,160.97,20.0]
[1729456637119,15.6787,161.07,160.97,20.06340422]
[1729456637498,15.6787,161.07,160.97,0.06340422]
[1729456637715,15.6787,161.07,160.96,0.06340422]
[1729456637914,21.8872,161.07,160.95,20.06340422]
[1729456638122,21.8872,161.07,160.96,0.06340422]
[1729456638898,15.6787,161.07,160.98,0.06340422]
[1729456639097,15.6787,161.07,160.99,0.06340422]
[1729456639528,15.6787,161.07,160.98,0.06340422]
[1729456640928,15.6787,161.07,160.99,20.0]
[1729456642208,15.6787,161.07,160.99,20.06340422]
[1729456651331,15.6787,161.07,160.99,20.0]
[1729456651539,15.6787,161.07,160.99,20.06340422]
[1729456654944,15.6787,161.07,161.0,23.84028822]
[1729456657235,6.46894324,161.09,161.02,23.84028822]
[1729456657425,15.5353,161.11,161.02,23.84028822]
[1729456657626,22.00336119,161.11,161.02,23.84028822]
[1729456657825,22.00336119,161.11,161.03,0.06340422]
[1729456658135,22.00336119,161.11,161.05,0.06340422]
[1729456658319,22.00336119,161.11,161.04,23.84028822]
[1729456659427,22.00336119,161.11,161.05,0.06340422]
[1729456661429,6.46806119,161.11,161.05,0.06340422]
[1729456668160,7.27670822,161.11,161.05,0.06340422]
[1729456668333,7.27670822,161.11,161.06,0.06340422]
[1729456668648,7.27670822,161.11,161.07,2.9843288]
[1729456668855,7.27670822,161.11,161.08,2.9843288]
[1729456669159,7.27670822,161.11,161.09,2.9843288]
[1729456669337,7.27670822,161.11,161.07,0.06340422]
[1729456669660,7.27670822,161.11,161.08,2.98381799]
[1729456669832,7.27670822,161.11,161.09,2.98381799]
[1729456670137,7.27670822,161.11,161.06,23.84028822]
[1729456670342,7.27670822,161.11,161.07,2.98143972]
[1729456670536,7.27670822,161.11,161.08,2.98143972]
[1729456670743,7.27670822,161.11,161.09,2.98143972]
[1729456670941,7.27670822,161.11,161.07,0.06340422]
[1729456670942,7.27670822,161.11,161.06,23.84028822]
[1729456671149,7.27670822,161.11,161.07,2.98103307]
[1729456671348,7.27670822,161.11,161.08,2.98103307]
[1729456671558,7.27670822,161.11,161.09,2.98103307]
[1729456671741,7.27670822,161.11,161.06,23.84028822]
[1729456671947,7.27670822,161.11,161.07,2.98079653]
[1729456672256,7.27670822,161.11,161.02,0.06340422]
[1729456672257,7.27670822,161.11,161.08,2.98079653]
[1729456672441,13.48380822,161.11,161.02,0.06340422]
[1729456672634,13.48380822,161.11,161.03,2.98091932]
[1729456672834,13.48380822,161.11,161.04,2.98091932]
[1729456673145,13.48380822,161.11,161.05,2.98091932]
[1729456673341,13.48380822,161.11,161.06,2.98091932]
[1729456673549,13.48380822,161.11,161.07,2.98091932]
[1729456673771,13.48380822,161.11,161.08,2.98091932]
[1729456673931,13.48380822,161.11,161.02,0.06340422]
[1729456674260,13.48380822,161.11,161.03,2.98006542]
[1729456674560,13.48380822,161.11,161.04,2.98006542]
[1729456674858,13.48380822,161.11,161.05,2.98006542]
[1729456675048,13.48380822,161.11,161.06,2.98006542]
[1729456675248,13.48380822,161.11,161.07,2.98006542]
[1729456675454,13.48380822,161.11,161.02,0.06340422]
[1729456675653,13.48380822,161.11,161.03,2.98029782]
[1729456675859,13.48380822,161.11,161.04,2.98029782]
[1729456676063,13.48380822,161.11,161.05,2.98029782]
[1729456676361,13.48380822,161.11,161.06,2.98029782]
[1729456676555,13.48380822,161.11,161.07,2.98029782]
[1729456676746,13.48380822,161.11,161.02,20.06340422]
[1729456676944,13.48380822,161.11,161.03,2.98019006]
[1729456677153,13.48380822,161.11,161.04,2.98019006]
[1729456677351,13.48380822,161.11,161.05,2.98019006]
[1729456677543,13.48380822,161.11,161.06,2.98019006]
[1729456677738,13.48380822,161.11,161.07,2.98019006]
[1729456677939,13.48380822,161.11,161.02,20.06340422]
[1729456678133,13.48380822,161.11,161.03,2.98010822]
[1729456678346,13.48380822,161.11,161.04,2.98010822]
[1729456678547,13.48380822,161.11,161.05,2.98010822]
[1729456678746,13.48380822,161.11,161.06,2.98010822]
[1729456679060,13.48380822,161.11,161.07,2.98010822]
[1729456679261,13.48380822,161.11,161.02,20.06340422]
[1729456679462,13.48380822,161.11,161.03,2.98006433]
[1729456679758,13.48380822,161.11,161.04,2.98006433]
[1729456679958,13.48380822,161.11,161.05,2.98006433]
[1729456680137,13.48380822,161.11,161.06,2.98006433]
[1729456680339,13.48380822,161.11,161.07,2.98006433]
[1729456680559,13.48380822,161.11,161.02,20.06340422]
[1729456680858,13.48380822,161.11,161.03,2.97988514]
[1729456681162,7.27670822,161.11,161.04,2.97983057]
[1729456681365,7.27670822,161.11,161.05,2.97983057]
[1729456681543,7.27670822,161.11,161.06,2.97983057]
[1729456681865,7.27670822,161.11,161.07,2.97983057]
[1729456682162,7.27670822,161.11,161.08,2.97983057]
[1729456682358,7.27670822,161.11,161.02,20.06340422]
[1729456682664,7.27670822,161.11,161.03,2.98027579]
[1729456682967,7.27670822,161.11,161.04,3.04368001]
[1729456683153,7.27670822,161.11,161.05,2.98027579]
[1729456683347,7.27670822,161.11,161.04,0.06340422]
[1729456683551,7.27670822,161.11,161.05,2.98031823]
[1729456683753,7.27670822,161.11,161.06,2.98031823]
[1729456684055,7.27670822,161.11,161.07,2.98031823]
[1729456684267,7.27670822,161.11,161.08,2.98031823]
[1729456684449,7.27670822,161.11,161.09,2.98008464]
[1729456684759,7.27670822,161.11,161.05,0.06340422]
[1729456684760,7.27670822,161.11,161.05,23.84028822]
[1729456684966,7.27670822,161.11,161.06,2.98007556]
[1729456685151,7.27670822,161.11,161.07,2.98007556]
[1729456685339,7.27670822,161.11,161.08,2.98007556]
[1729456685538,7.27670822,161.11,161.09,2.98007556]
[1729456685736,7.27670822,161.11,161.05,23.84028822]
[1729456685953,7.27670822,161.11,161.06,2.98003282]
[1729456686165,7.27670822,161.11,161.07,2.98003282]
[1729456686368,7.27670822,161.11,161.08,2.98003282]
[1729456686540,7.27670822,161.11,161.09,2.98003282]
[1729456686741,7.27670822,161.11,161.05,23.84028822]
[1729456686938,7.27670822,161.11,161.06,3.04353807]
[1729456687167,7.27670822,161.11,161.07,2.98013385]
[1729456687352,7.27670822,161.11,161.08,2.98013385]
[1729456687548,7.27670822,161.11,161.09,2.98013385]
[1729456687762,7.27670822,161.11,161.06,20.06340422]
[1729456687950,7.27670822,161.11,161.07,2.98016563]
[1729456688153,7.27670822,161.11,161.08,2.98016563]
[1729456688346,7.27670822,161.11,161.09,2.98016563]
[1729456688543,7.27670822,161.11,161.07,23.84028822]
[1729456688765,7.27670822,161.11,161.08,22.98011801]
[1729456688966,7.27670822,161.11,161.09,2.98011801]
[1729456689171,7.27670822,161.11,161.07,23.84028822]
[1729456689467,7.27670822,161.11,161.08,2.979939]
[1729456689767,7.27670822,161.11,161.09,2.979939]
[1729456690070,0.80864703,161.11,161.1,2.979939]
[1729456690448,0.80864703,161.11,161.1,2.97920191]
[1729456690868,0.80864703,161.11,161.1,26.81949013]
[1729456691067,0.629156,161.17,161.13,0.06340422]
[1729456691241,0.629156,161.17,161.14,2.97920191]
[1729456691447,0.629156,161.17,161.13,23.84028822]
[1729456691663,0.629156,161.17,161.14,2.97476569]
[1729456691866,0.629156,161.17,161.15,2.97476569]
[1729456692047,0.629156,161.17,161.13,23.84028822]
[1729456692253,0.629156,161.17,161.14,2.97267635]
[1729456692450,0.629156,161.17,161.15,2.97267635]
[1729456692654,0.629156,161.17,161.13,23.776884]
[1729456692852,0.629156,161.17,161.14,2.97274299]
[1729456693062,0.629156,161.17,161.13,23.776884]
[1729456693261,0.629156,161.17,161.14,2.97158769]
[1729456693463,25.04625415,161.22,161.14,2.97158769]
[1729456693777,18.84345415,161.22,161.15,23.84028822]
[1729456694470,18.84345415,161.22,161.16,0.06340422]
[1729456694849,15.8171,161.22,161.16,0.06340422]
[1729456695267,15.8171,161.22,161.17,0.06340422]
[1729456695649,6.46872983,161.26,161.17,0.06340422]
[1729456695852,6.46872983,161.26,161.24,0.06340422]
[1729456696054,15.8171,161.31,161.24,0.06340422]
[1729456696370,6.46826065,161.3,161.24,0.06340422]
[1729456696560,6.46826065,161.3,161.26,0.06340422]
[1729456696873,6.46826065,161.3,161.25,0.06340422]
[1729456697251,6.46826065,161.3,161.24,0.06340422]
[1729456698577,6.46826065,161.3,161.25,0.06340422]
[1729456698750,6.46826065,161.3,161.24,0.06340422]
[1729456700278,6.46826065,161.3,161.25,0.06340422]
[1729456700978,6.46826065,161.3,161.23,0.06340422]
[1729456701183,12.66786065,161.3,161.23,0.06340422]
[1729456702889,12.66786065,161.3,161.17,20.0]
[1729456702890,6.46826065,161.3,161.24,0.06340422]
[1729456705279,6.46826065,161.3,161.26,0.06340422]
[1729456705857,6.46826065,161.3,161.25,0.06340422]
[1729456706581,6.46826065,161.3,161.26,0.06340422]
[1729456706963,6.46826065,161.3,161.27,0.06340422]
[1729456707477,2.629156,161.33,161.28,0.06340422]
[1729456707771,9.09613517,161.33,161.28,0.06340422]
[1729456708084,9.09613517,161.33,161.32,43.84028822]
[1729456708383,2.629156,161.33,161.32,43.84028822]
[1729456709059,2.629156,161.33,161.32,50.22922947]
[1729456709266,15.3312,161.45,161.4,0.06340422]
[1729456709785,138.5,161.47,161.41,0.06340422]
[1729456710085,138.5,161.46,161.39,0.06340422]
[1729456710284,138.0,161.46,161.42,0.06340422]
[1729456710589,132.2,161.48,161.42,0.06340422]
[1729456711090,132.2,161.48,161.43,0.06340422]
[1729456711599,132.2,161.47,161.44,0.06340422]
[1729456711789,132.2,161.46,161.41,0.06340422]
[1729456712372,132.2,161.48,161.41,0.06340422]
[1729456713391,6.1932,161.47,161.4,0.06340422]
[1729456713561,132.2,161.48,161.41,0.06340422]
[1729456713767,132.2,161.48,161.43,0.06340422]
[1729456713969,132.2,161.48,161.42,0.06340422]
[1729456714471,132.2,161.48,161.43,0.06340422]
[1729456715091,132.2,161.48,161.41,0.06340422]
[1729456715392,138.393,161.48,161.41,0.06340422]
[1729456715888,6.1934,161.47,161.4,0.06340422]
[1729456716191,132.2,161.48,161.38,0.06340422]
[1729456716192,6.1938,161.45,161.38,0.06340422]
[1729456721978,6.1938,161.45,161.39,0.06340422]
[1729456725470,138.3935,161.46,161.4,0.06340422]
[1729456725676,132.2,161.46,161.4,0.06340422]
[1729456726580,132.2,161.46,161.33,20.0]
[1729456726581,132.2,161.46,161.45,0.06340422]
[1729456726772,132.2,161.47,161.45,0.06340422]
[1729456726981,6.46292448,161.48,161.45,0.06340422]
[1729456726982,132.2,161.46,161.45,0.06340422]
[1729456727192,132.2,161.47,161.45,0.06340422]
[1729456727391,6.46292448,161.48,161.45,0.06340422]
[1729456727392,132.2,161.46,161.45,0.06340422]
[1729456727703,132.2,161.47,161.45,0.06340422]
[1729456728080,132.2,161.46,161.45,0.06340422]
[1729456728403,6.46292448,161.48,161.46,0.06340422]
[1729456728574,0.629156,161.49,161.46,0.06340422]
[1729456730777,0.629156,161.49,161.45,0.06340422]
[1729456732205,0.629156,161.49,161.46,0.06340422]
[1729456743515,0.629156,161.49,161.45,0.06340422]
[1729456745700,0.629156,161.49,161.41,0.06340422]
[1729456745701,6.1927,161.48,161.41,0.06340422]
[1729456745913,6.1934,161.47,161.41,0.06340422]
[1729456746296,6.1934,161.47,161.4,0.06340422]
[1729456746503,6.1935,161.46,161.4,0.06340422]
[1729456747319,6.1933,161.47,161.4,0.06340422]
[1729456749223,6.1931,161.47,161.39,0.06340422]
[1729456749404,6.1931,161.47,161.4,0.06340422]
[1729456750204,15.1707,161.45,161.37,0.06340422]
[1729456750520,6.1948,161.43,161.37,0.06340422]
[1729456750828,6.1943,161.44,161.38,0.06340422]
[1729456752024,6.1943,161.44,161.37,0.06340422]
[1729456752236,6.1943,161.44,161.38,0.06340422]
[1729456752457,21.3645,161.45,161.38,0.06340422]
[1729456752627,15.1707,161.45,161.41,0.06340422]
[1729456754435,12.4146,161.48,161.41,0.06340422]
[1729456757146,20.0,161.47,161.37,0.06340422]
[1729456757443,6.1947,161.43,161.37,0.06340422]
[1729456757649,6.1948,161.43,161.36,0.06340422]
[1729456757940,21.3655,161.43,161.36,0.06340422]
[1729456758949,6.1951,161.42,161.35,0.06340422]
[1729456759319,15.1707,161.43,161.34,0.06340422]
[1729456759555,6.1957,161.41,161.33,0.06340422]
[1729456759841,6.1957,161.41,161.31,21.298]
[1729456759842,6.1954,161.41,161.32,0.06340422]
[1729456760743,6.1965,161.38,161.31,0.06340422]
[1729456761623,20.0,161.41,161.32,0.06340422]
[1729456761837,6.1959,161.4,161.32,0.06340422]
[1729456762647,6.1963,161.39,161.32,0.06340422]
[1729456764426,6.1956,161.41,161.33,0.06340422]
[1729456764753,12.4167,161.42,161.34,0.06340422]
[1729456765131,12.4167,161.42,161.35,0.06340422]
[1729456765647,6.2217,161.42,161.35,0.06340422]
[1729456766230,12.4167,161.42,161.35,0.06340422]
[1729456767952,18.88351635,161.42,161.35,0.06340422]
[1729456768450,18.88351635,161.42,161.34,0.06340422]
[1729456769355,18.88351635,161.42,161.35,0.06340422]
[1729456769556,6.1957,161.41,161.33,0.06340422]
[1729456769758,6.1958,161.4,161.32,0.06340422]
[1729456769937,12.68851635,161.42,161.35,0.06340422]
[1729456770143,18.88361635,161.42,161.35,0.06340422]
[1729456770838,18.88361635,161.42,161.34,0.06340422]
[1729456771658,12.78851635,161.42,161.3,0.06340422]
[1729456771955,6.197,161.37,161.3,0.06340422]
[1729456772460,6.197,161.37,161.27,6.08950422]
[1729456772838,6.197,161.37,161.28,20.0]
[1729456773545,21.6521,161.37,161.28,20.0]
[1729456774555,6.1973,161.36,161.28,20.0]
[1729456775262,6.198,161.35,161.23,21.16084125]
[1729456775557,6.198,161.35,161.24,21.3]
[1729456775742,6.198,161.35,161.23,14.7719]
[1729456776549,6.0119,161.36,161.23,14.7719]
[1729456776750,6.1985,161.33,161.23,14.7719]
[1729456777062,6.1985,161.33,161.22,6.3829]
[1729456777063,15.4551,161.31,161.19,21.16084125]
[1729456777364,15.4551,161.31,161.19,14.7719]
[1729456777365,6.2,161.29,161.19,14.7719]
[1729456778147,6.201,161.27,161.15,21.1548]
[1729456779545,6.201,161.27,161.16,43.776884]
[1729456780735,6.47152334,161.28,161.16,43.776884]
[1729456781041,6.1996,161.3,161.16,43.776884]
[1729456781460,6.47103711,161.3,161.16,43.776884]
[1729456781647,6.47103711,161.3,161.16,50.36582525]
[1729456781967,6.47103711,161.3,161.18,43.776884]
[1729456782177,21.467,161.31,161.18,43.776884]
[1729456783674,21.467,161.31,161.18,20.0]
[1729456783874,21.467,161.31,161.16,20.0]
[1729456784171,6.2,161.29,161.16,20.0]
[1729456784371,21.467,161.31,161.17,0.2]
[1729456784576,21.467,161.31,161.18,20.0]
[1729456784770,21.467,161.31,161.19,23.776884]
[1729456784976,21.467,161.31,161.2,20.0]
[1729456785164,6.1999,161.3,161.2,20.0]
[1729456785773,15.4551,161.31,161.2,20.0]
[1729456785982,15.4551,161.31,161.22,20.0]
[1729456794390,15.4551,161.31,161.24,20.0]
[1729456796093,15.4551,161.31,161.22,20.0]
[1729456796260,15.4551,161.31,161.23,23.776884]
[1729456796464,15.4551,161.31,161.21,23.776884]
[1729456797474,15.4551,161.31,161.21,38.548784]
[1729456797687,6.46983369,161.34,161.23,23.776884]
[1729456798279,21.9759,161.35,161.23,23.776884]
[1729456799570,21.9759,161.35,161.25,23.776884]
[1729456800498,15.9757,161.35,161.25,23.776884]
[1729456800987,15.9757,161.35,161.27,23.776884]
[1729456801695,15.9757,161.35,161.26,23.776884]
[1729456804104,22.1734,161.35,161.26,23.776884]
[1729456804281,15.9757,161.35,161.26,23.776884]
[1729456805782,6.4682055,161.39,161.27,20.0]
[1729456805985,15.2955,161.44,161.31,20.0]
[1729456806187,15.2955,161.44,161.32,23.776884]
[1729456806386,15.2955,161.44,161.34,23.776884]
[1729456807697,0.629156,161.49,161.36,43.776884]
[1729456807898,21.8847,161.48,161.36,23.776884]
[1729456808206,6.1933,161.47,161.36,23.776884]
[1729456813004,6.1941,161.45,161.34,23.776884]
[1729456814704,6.1943,161.44,161.32,43.776884]
[1729456816091,20.0,161.44,161.32,23.776884]
[1729456816284,6.5892,161.43,161.29,6.4344]
[1729456816484,20.0,161.42,161.29,6.4344]
[1729456816687,26.1953,161.42,161.29,6.4344]
[1729456817890,26.1953,161.42,161.3,23.776884]
[1729456818213,6.46669523,161.41,161.3,23.776884]
[1729456818603,20.0,161.42,161.3,23.776884]
[1729456818910,12.7838,161.43,161.31,20.0]
[1729456819112,6.5892,161.43,161.32,23.776884]
[1729456819996,6.5892,161.43,161.34,23.776884]
[1729456821314,15.2955,161.45,161.34,23.776884]
[1729456821504,15.2955,161.45,161.36,23.776884]
[1729456825797,15.2955,161.45,161.37,20.0]
[1729456826099,15.2955,161.45,161.38,23.776884]
[1729456827117,6.5892,161.48,161.38,23.776884]
[1729456829816,6.5892,161.48,161.39,20.0]
[1729456830123,22.71008682,161.49,161.4,23.776884]
[1729456833107,22.71008682,161.49,161.46,0.1]
[1729456833108,7.09278682,161.49,161.46,0.1]
[1729456833435,7.09278682,161.49,161.41,40.8103]
[1729456833436,0.250862,161.54,161.49,43.876884]
[1729456833599,0.250862,161.54,161.49,23.776884]
[1729456833802,0.250862,161.54,161.49,23.876884]
[1729456834012,0.250862,161.54,161.49,28.776884]
[1729456834322,0.250862,161.54,161.49,23.776884]
[1729456834704,0.250862,161.54,161.49,39.34318259]
[1729456835209,0.629156,161.66,161.5,16.80373198]
[1729456835408,0.729156,161.66,161.5,15.56629859]
[1729456835613,4.87098109,161.71,161.54,0.1]
[1729456835927,4.87098109,161.71,161.53,0.2]
[1729456836128,6.3654,161.7,161.53,0.2]
[1729456836342,6.3654,161.7,161.53,1.22]
[1729456836940,6.1846,161.69,161.53,1.02]
[1729456837307,6.3654,161.7,161.54,23.876884]
[1729456837523,6.3654,161.7,161.54,24.896884]
[1729456840917,6.3654,161.7,161.54,23.776884]
[1729456840918,20.0,161.69,161.54,23.776884]
[1729456841120,6.1852,161.68,161.52,0.1]
[1729456841332,15.6173,161.67,161.52,0.1]
[1729456841816,15.6173,161.67,161.52,0.2]
[1729456842132,15.6173,161.67,161.52,0.1]
[1729456842338,15.6173,161.67,161.52,0.2]
[1729456842634,15.6173,161.67,161.55,0.1]
[1729456842834,15.6173,161.67,161.52,15.66629859]
[1729456842835,15.6173,161.67,161.54,0.1]
[1729456843838,15.6173,161.67,161.54,21.36]
[1729456844021,15.6173,161.67,161.54,0.1]
[1729456844433,6.3654,161.7,161.56,0.1]
[1729456845139,6.3654,161.7,161.57,0.1]
[1729456845432,0.1,161.77,161.57,0.1]
[1729456845433,6.0004,161.76,161.59,23.776884]
[1729456845640,6.45266592,161.7,161.6,0.1]
[1729456845818,6.1827,161.75,161.59,23.876884]